lending/lending_fUSD_20250121
["ID","MTS","AMOUNT","RATE_DAILY","PERIOD"]
[349850269,1737460244202,-500.0,0.00019452,2]
[349850271,1737460244212,-500.0,0.00019452,2]
[349850273,1737460244223,-502.19,0.00019452,2]
[349850275,1737460244232,-371.98874001,0.00019452,2]
[349850278,1737460244249,-128.01125999,0.00019452,2]
[349850280,1737460244259,-500.0,0.00019452,2]
[349850281,1737460244268,-500.0,0.00019452,2]
[349850282,1737460244277,-500.0,0.00019452,2]
[349850283,1737460244287,-500.0,0.00019452,2]
[349850284,1737460244297,-500.0,0.00019452,2]
[349850285,1737460244307,-500.0,0.00019452,2]
[349850286,1737460244317,-500.0,0.00019452,2]
[349850287,1737460244329,-370.51784183,0.00019452,2]
[349850288,1737460244339,-500.0,0.00019452,2]
[349850289,1737460244349,-500.0,0.00019452,2]
[349850290,1737460244359,-500.0,0.00019452,2]
[349850292,1737460244368,-675.85586783,0.00019452,2]
[349850306,1737460244754,-250.00937501,0.00019452,2]
[349850307,1737460244775,-249.99062499,0.00019452,2]
[349850308,1737460244784,-500.0,0.00019452,2]
[349850309,1737460244794,-500.0,0.00019452,2]
[349850310,1737460244804,-500.0,0.00019452,2]
[349850311,1737460244815,-508.19,0.00019452,2]
[349850312,1737460244825,-500.0,0.00019452,2]
[349850313,1737460244836,-500.0,0.00019452,2]
[349850314,1737460244846,-500.0,0.00019452,2]
[349850315,1737460244856,-500.0,0.00019452,2]
[349850316,1737460244866,-500.0,0.00019452,2]
[349850317,1737460244877,-500.0,0.00019452,2]
[349850318,1737460244888,-500.0,0.00019452,2]
[349850319,1737460244899,-500.0,0.00019452,2]
[349850320,1737460244909,-500.0,0.00019452,2]
[349850321,1737460244919,-500.0,0.00019452,2]
[349850322,1737460244931,-500.0,0.00019452,2]
[349850323,1737460245103,-500.0,0.00019452,2]
[349850324,1737460245125,-506.5696643,0.00019452,2]
[349850325,1737460245135,-500.0,0.00019452,2]
[349850326,1737460245145,-500.0,0.00019452,2]
[349850327,1737460245155,-651.97,0.00019452,2]
[349850328,1737460245165,-512.74990874,0.00019452,2]
[349850329,1737460245175,-200.0,0.00019452,2]
[349850330,1737460245185,-500.0,0.00019452,2]
[349850331,1737460245195,-344.383705,0.00019452,2]
[349850332,1737460245205,-605.85,0.00019452,2]
[349850333,1737460245215,-500.0,0.00019452,2]
[349850334,1737460245224,-500.0,0.00019452,2]
[349850335,1737460245234,-500.0,0.00019452,2]
[349850336,1737460245244,-1050.69,0.00019452,2]
[349850337,1737460245254,-500.0,0.00019452,2]
[349850338,1737460245263,-327.74713642,0.00019452,2]
[349850339,1737460245273,-500.0,0.00019452,2]
[349850340,1737460245283,-500.0,0.00019452,2]
[349850341,1737460245294,-500.0,0.00019452,2]
[349850342,1737460245304,-500.0,0.00019452,2]
[349850343,1737460245314,-500.0,0.00019452,2]
[349850344,1737460245324,-500.0,0.00019452,2]
[349850345,1737460245335,-500.0,0.00019452,2]
[349850346,1737460245345,-1075.65,0.00019452,2]
[349850347,1737460245355,-500.0,0.00019452,2]
[349850348,1737460245365,-500.0,0.00019452,2]
[349850349,1737460245375,-500.0,0.00019452,2]
[349850350,1737460245385,-531.37,0.00019452,2]
[349850351,1737460245395,-1025.54,0.00019452,2]
[349850352,1737460245403,-500.0,0.00019452,2]
[349850353,1737460245413,-500.0,0.00019452,2]
[349850354,1737460245423,-296.0367435,0.00019452,2]
[349850355,1737460245433,-500.0,0.00019452,2]
[349850356,1737460245443,-500.0,0.00019452,2]
[349850357,1737460245452,-500.0,0.00019452,2]
[349850358,1737460245462,-630.22,0.00019452,2]
[349850359,1737460245471,-500.0,0.00019452,2]
[349850360,1737460245480,-500.0,0.00019452,2]
[349850361,1737460245490,-500.0,0.00019452,2]
[349850362,1737460245500,-500.0,0.00019452,2]
[349850363,1737460245510,-500.0,0.00019452,2]
[349850364,1737460245520,-500.0,0.00019452,2]
[349850365,1737460245529,-208.215576,0.00019452,2]
[349850366,1737460245539,-500.0,0.00019452,2]
[349850367,1737460245548,-500.0,0.00019452,2]
[349850368,1737460245558,-500.0,0.00019452,2]
[349850369,1737460245567,-500.0,0.00019452,2]
[349850370,1737460245576,-500.0,0.00019452,2]
[349850371,1737460245587,-500.0,0.00019452,2]
[349850372,1737460245596,-500.0,0.00019452,2]
[349850373,1737460245606,-500.0,0.00019452,2]
[349850374,1737460245616,-1724.0,0.00019452,2]
[349850375,1737460245626,-500.0,0.00019452,2]
[349850376,1737460245635,-500.0,0.00019452,2]
[349850377,1737460245646,-500.0,0.00019452,2]
[349850378,1737460245655,-1226.07,0.00019452,2]
[349850379,1737460245665,-500.0,0.00019452,2]
[349850380,1737460245674,-483.27208594,0.00019452,2]
[349850381,1737460245684,-500.0,0.00019452,2]
[349850382,1737460245693,-500.0,0.00019452,2]
[349850383,1737460245703,-517.65414529,0.00019452,2]
[349850384,1737460245712,-534.90685798,0.00019452,2]
[349850385,1737460245721,-500.0,0.00019452,2]
[349850386,1737460245731,-652.68,0.00019452,2]
[349850387,1737460245741,-500.0,0.00019452,2]
[349850388,1737460245751,-551.74,0.00019452,2]
[349850389,1737460245760,-500.0,0.00019452,2]
[349850390,1737460245770,-500.0,0.00019452,2]
[349850391,1737460245780,-500.0,0.00019452,2]
[349850392,1737460245790,-500.0,0.00019452,2]
[349850393,1737460245799,-441.15306598,0.00019452,2]
[349850394,1737460245813,-58.84693402,0.00019452,2]
[349850395,1737460245822,-500.0,0.00019452,2]
[349850396,1737460245833,-500.0,0.00019452,2]
[349850397,1737460245843,-526.15306598,0.00019452,2]
[349850402,1737460246305,-758.15,0.0001945,2]
[349850403,1737460246315,-8.823008,0.00019452,2]
[349850404,1737460246481,-395.0,0.00019452,2]
[349850417,1737460335702,10000.0,0.00022664,30]
[349850423,1737460549312,712.08697,0.00022664,30]
[349850426,1737460725933,50000.0,0.00022664,30]
[349850427,1737460732793,50000.0,0.00022664,31]
[349850428,1737460736623,50000.0,0.00022664,32]
[349850429,1737460740142,50000.0,0.00022664,33]
[349850430,1737460743664,50000.0,0.00022664,34]
[349850431,1737460798169,-506.77,0.00021254,30]
[349850432,1737460798243,-1000.0,0.00022,30]
[349850433,1737460798272,-2000.0,0.00022,30]
[349850436,1737460859707,151.35,0.00010137,2]
[349850437,1737460889635,1634.63461733,0.00022664,120]
[349850438,1737460965191,479.45,0.00018577,30]
[349850439,1737460965790,479.45,0.00021161,30]
[349850440,1737461088360,213.393456,0.000204,30]
[349850441,1737461198092,-163.2319494,0.00012329,2]
[349850526,1737461397100,-1000.0,0.00022027,30]
[349850527,1737461397121,-2000.0,0.00022027,30]
[349850528,1737461397142,-2000.0,0.00022055,30]
[349850529,1737461397163,-1000.0,0.00022055,30]
[349850530,1737461397184,-2000.0,0.00022055,30]
[349850531,1737461397205,-1000.0,0.00022082,30]
[349850532,1737461397231,-2000.0,0.00022082,30]
[349850533,1737461397253,-1000.0,0.0002211,30]
[349850534,1737461397276,-2000.0,0.0002211,30]
[349850535,1737461397298,-1000.0,0.00022137,30]
[349850536,1737461397321,-2000.0,0.00022137,30]
[349850537,1737461397341,-1000.0,0.00022164,30]
[349850538,1737461397363,-2000.0,0.00022164,30]
[349850539,1737461397390,-2000.0,0.00022192,30]
[349850540,1737461397412,-1000.0,0.00022192,30]
[349850541,1737461397432,-2000.0,0.00022192,30]
[349850542,1737461397453,-1200.0,0.00022192,30]
[349850543,1737461397476,-2000.0,0.00022329,30]
[349850544,1737461397507,-2000.0,0.00022466,30]
[349850545,1737461397532,-1295.23,0.000225,31]
[349850546,1737461397556,-1295.23,0.000225,31]
[349850547,1737461397580,-1295.23,0.000225,31]
[349850548,1737461397604,-1295.23,0.000225,31]
[349850549,1737461397627,-1295.23,0.000225,31]
[349850550,1737461397650,-1295.23,0.000225,31]
[349850551,1737461397673,-1295.23,0.000225,31]
[349850552,1737461397695,-1295.23,0.000225,31]
[349850553,1737461397719,-1295.23,0.000225,31]
[349850554,1737461397742,-1295.23,0.000225,31]
[349850555,1737461397766,-1295.23,0.000225,31]
[349850556,1737461397789,-1295.23,0.000225,31]
[349850557,1737461397811,-1295.23,0.000225,31]
[349850558,1737461397834,-1295.23,0.000225,31]
[349850559,1737461397858,-1295.23,0.000225,31]
[349850560,1737461397881,-1295.23,0.000225,31]
[349850561,1737461397907,-2363.86684579,0.0002266,30]
[349850562,1737461397928,-4982.37,0.0002266,30]
[349850563,1737461397982,-551.85837341,0.00023,30]
[349850564,1737461398003,-500.0,0.00023,30]
[349850565,1737461398025,-500.0,0.00023,30]
[349850580,1737461431380,-10.2480506,0.00012329,2]
[349850582,1737461431390,-328.5199994,0.00015,2]
[349850586,1737461431435,-221.4800006,0.00015,2]
[349850587,1737461431444,-897.0,0.00016092,2]
[349850588,1737461431454,-182.38116118,0.0001629,2]
[349850589,1737461431463,-213.30087826,0.00016448,2]
[349850590,1737461431473,-500.0,0.00016548,2]
[349850591,1737461431483,-600.0,0.00017,2]
[349850592,1737461431492,-250.0,0.00017959,2]
[349850593,1737461431501,-250.0,0.0001801,2]
[349850594,1737461431511,-410.26,0.00018018,2]
[349850595,1737461431520,-474.24,0.00018092,2]
[349850596,1737461431531,-907.61,0.00018344,2]
[349850597,1737461431540,-897.0,0.00018356,2]
[349850598,1737461431550,-1000.0,0.00018474,2]
[349850599,1737461431559,-283.01,0.00018599,2]
[349850600,1737461431568,-23081.27,0.00018698,2]
[349850601,1737461431577,-502.67,0.00018815,2]
[349850602,1737461431588,-354.0,0.00018871,2]
[349850603,1737461431597,-915.22,0.00018914,2]
[349850604,1737461431607,-169.25,0.00018943,2]
[349850605,1737461431616,-573.46737642,0.00018978,2]
[349850606,1737461431626,-650.0,0.00019,2]
[349850607,1737461431635,-406.0,0.00019077,2]
[349850608,1737461431645,-170.2,0.00019078,2]
[349850609,1737461431655,-927.227,0.00019078,2]
[349850610,1737461431664,-6667.59248054,0.00019078,2]
[349850611,1737461431674,-10655.2892,0.00019078,2]
[349850612,1737461431683,-2005.2464,0.00019078,2]
[349850613,1737461431693,-31860.0522,0.00019078,2]
[349850614,1737461431702,-500.0,0.00019178,2]
[349850615,1737461431711,-400.58162573,0.00019178,2]
[349850616,1737461431721,-277.5827939,0.00019178,2]
[349850617,1737461431731,-500.63182454,0.00019178,2]
[349850618,1737461431740,-501.13180464,0.00019178,2]
[349850619,1737461431750,-501.33918332,0.00019178,2]
[349850620,1737461431759,-500.0,0.00019178,2]
[349850621,1737461431769,-501.96868669,0.00019178,2]
[349850622,1737461431781,-503.36795261,0.00019178,2]
[349850623,1737461431791,-502.00127569,0.00019178,2]
[349850624,1737461431800,-501.58467759,0.00019178,2]
[349850625,1737461431809,-502.18249711,0.00019178,2]
[349850626,1737461431817,-300.89836945,0.00019178,2]
[349850627,1737461431827,-500.0,0.00019178,2]
[349850628,1737461431837,-500.0,0.00019178,2]
[349850629,1737461431846,-500.0,0.00019178,2]
[349850630,1737461431856,-500.0,0.00019178,2]
[349850631,1737461431866,-500.0,0.00019178,2]
[349850632,1737461431875,-500.0,0.00019178,2]
[349850633,1737461431885,-500.0,0.00019178,2]
[349850634,1737461431894,-500.0,0.00019178,2]
[349850635,1737461431903,-500.0,0.00019178,2]
[349850636,1737461431913,-171.21512633,0.00019178,2]
[349850637,1737461431922,-500.0,0.00019178,2]
[349850638,1737461431931,-500.0,0.00019178,2]
[349850639,1737461431941,-401.12204773,0.00019178,2]
[349850640,1737461431951,-500.0,0.00019178,2]
[349850641,1737461431961,-500.0,0.00019178,2]
[349850642,1737461431970,-500.0,0.00019178,2]
[349850643,1737461431980,-604.14538419,0.00019178,2]
[349850644,1737461431990,-234.50880849,0.00019178,2]
[349850645,1737461432000,-513.99166815,0.00019178,2]
[349850646,1737461432011,-500.0,0.00019178,2]
[349850647,1737461432021,-500.0,0.00019178,2]
[349850648,1737461432032,-500.0,0.00019178,2]
[349850649,1737461432042,-500.0,0.00019178,2]
[349850650,1737461432051,-500.0,0.00019178,2]
[349850651,1737461432061,-500.0,0.00019178,2]
[349850652,1737461432071,-500.0,0.00019178,2]
[349850653,1737461432081,-500.0,0.00019178,2]
[349850654,1737461432090,-500.0,0.00019178,2]
[349850655,1737461432098,-357.00137754,0.00019178,2]
[349850656,1737461432108,-648.49887919,0.00019178,2]
[349850657,1737461432117,-500.0,0.00019178,2]
[349850658,1737461432127,-500.0,0.00019178,2]
[349850659,1737461432137,-500.0,0.00019178,2]
[349850660,1737461432147,-500.0,0.00019178,2]
[349850661,1737461432156,-510.74231745,0.00019178,2]
[349850662,1737461432164,-500.0,0.00019178,2]
[349850663,1737461432173,-500.0,0.00019178,2]
[349850664,1737461432183,-500.0,0.00019178,2]
[349850665,1737461432192,-500.0,0.00019178,2]
[349850666,1737461432203,-500.0,0.00019178,2]
[349850667,1737461432212,-500.0,0.00019178,2]
[349850668,1737461432222,-512.07397301,0.00019178,2]
[349850669,1737461432232,-500.0,0.00019178,2]
[349850670,1737461432242,-605.96,0.00019178,2]
[349850671,1737461432255,-518.8938184,0.00019178,2]
[349850672,1737461432264,-500.0,0.00019178,2]
[349850673,1737461432274,-500.0,0.00019178,2]
[349850674,1737461432285,-434.42496004,0.00019178,2]
[349850675,1737461432295,-519.79160225,0.00019178,2]
[349850676,1737461432305,-300.0,0.00019178,2]
[349850677,1737461432315,-500.0,0.00019178,2]
[349850678,1737461432326,-500.0,0.00019178,2]
[349850679,1737461432335,-585.37564464,0.00019178,2]
[349850680,1737461432344,-500.0,0.00019178,2]
[349850681,1737461432354,-500.0,0.00019178,2]
[349850682,1737461432363,-500.0,0.00019178,2]
[349850683,1737461432373,-336.26996785,0.00019178,2]
[349850684,1737461432384,-500.0,0.00019178,2]
[349850685,1737461432394,-500.0,0.00019178,2]
[349850686,1737461432404,-500.0,0.00019178,2]
[349850687,1737461432413,-500.0,0.00019178,2]
[349850688,1737461432422,-500.0,0.00019178,2]
[349850689,1737461432431,-500.0,0.00019178,2]
[349850690,1737461432441,-500.0,0.00019178,2]
[349850691,1737461432451,-500.0,0.00019178,2]
[349850692,1737461432461,-500.0,0.00019178,2]
[349850693,1737461432470,-500.0,0.00019178,2]
[349850694,1737461432479,-500.0,0.00019178,2]
[349850695,1737461432488,-500.0,0.00019178,2]
[349850696,1737461432498,-500.0,0.00019178,2]
[349850697,1737461432507,-500.0,0.00019178,2]
[349850698,1737461432516,-500.0,0.00019178,2]
[349850699,1737461432525,-500.0,0.00019178,2]
[349850700,1737461432536,-500.0,0.00019178,2]
[349850701,1737461432546,-500.0,0.00019178,2]
[349850703,1737461432555,-500.0,0.00019178,2]
[349850705,1737461432564,-500.0,0.00019178,2]
[349850707,1737461432573,-500.0,0.00019178,2]
[349850709,1737461432583,-213.48169578,0.00019178,2]
[349850711,1737461432592,-500.0,0.00019178,2]
[349850713,1737461432602,-123.85598496,0.00019178,2]
[349850715,1737461432615,-442.91401504,0.00019178,2]
[349850717,1737461432625,-500.0,0.00019178,2]
[349850719,1737461432634,-500.0,0.00019178,2]
[349850721,1737461432643,-500.0,0.00019178,2]
[349850723,1737461432652,-500.0,0.00019178,2]
[349850725,1737461432661,-500.0,0.00019178,2]
[349850727,1737461432669,-585.16697611,0.00019178,2]
[349850729,1737461432678,-500.0,0.00019178,2]
[349850731,1737461432688,-500.0,0.00019178,2]
[349850733,1737461432696,-500.0,0.00019178,2]
[349850735,1737461432706,-500.0,0.00019178,2]
[349850737,1737461432715,-500.0,0.00019178,2]
[349850739,1737461432724,-500.0,0.00019178,2]
[349850741,1737461432733,-588.02218533,0.00019178,2]
[349850743,1737461432742,-500.0,0.00019178,2]
[349850745,1737461432751,-500.0,0.00019178,2]
[349850747,1737461432760,-500.0,0.00019178,2]
[349850749,1737461432770,-500.0,0.00019178,2]
[349850751,1737461432780,-500.0,0.00019178,2]
[349850753,1737461432790,-320.8490607,0.00019178,2]
[349850755,1737461432803,-179.1509393,0.00019178,2]
[349850757,1737461432812,-500.0,0.00019178,2]
[349850759,1737461432821,-1039.45,0.00019178,2]
[349850761,1737461432831,-500.0,0.00019178,2]
[349850763,1737461432841,-500.0,0.00019178,2]
[349850766,1737461432851,-500.0,0.00019178,2]
[349850767,1737461432861,-500.0,0.00019178,2]
[349850769,1737461432870,-500.0,0.00019178,2]
[349850771,1737461432879,-500.0,0.00019178,2]
[349850773,1737461432889,-500.0,0.00019178,2]
[349850775,1737461432898,-500.0,0.00019178,2]
[349850777,1737461432907,-500.0,0.00019178,2]
[349850778,1737461432917,-500.0,0.00019178,2]
[349850789,1737461432927,-500.0,0.00019178,2]
[349850791,1737461433138,-500.0,0.00019178,2]
[349850793,1737461433148,-500.0,0.00019178,2]
[349850795,1737461433158,-500.0,0.00019178,2]
[349850797,1737461433169,-500.0,0.00019178,2]
[349850799,1737461433179,-500.0,0.00019178,2]
[349850801,1737461433190,-500.0,0.00019178,2]
[349850803,1737461433200,-500.0,0.00019178,2]
[349850805,1737461433211,-500.0,0.00019178,2]
[349850807,1737461433221,-500.0,0.00019178,2]
[349850809,1737461433231,-500.0,0.00019178,2]
[349850811,1737461433241,-500.0,0.00019178,2]
[349850813,1737461433253,-500.0,0.00019178,2]
[349850815,1737461433263,-500.0,0.00019178,2]
[349850816,1737461433273,-508.25853378,0.00019178,2]
[349850818,1737461433284,-500.0,0.00019178,2]
[349850820,1737461433294,-500.0,0.00019178,2]
[349850822,1737461433304,-500.0,0.00019178,2]
[349850824,1737461433314,-500.0,0.00019178,2]
[349850826,1737461433324,-500.0,0.00019178,2]
[349850828,1737461433334,-500.0,0.00019178,2]
[349850830,1737461433344,-500.0,0.00019178,2]
[349850832,1737461433354,-500.0,0.00019178,2]
[349850834,1737461433364,-500.0,0.00019178,2]
[349850837,1737461433375,-500.0,0.00019178,2]
[349850839,1737461433385,-447.4379929,0.00019178,2]
[349850840,1737461433395,-500.0,0.00019178,2]
[349850842,1737461433404,-500.0,0.00019178,2]
[349850844,1737461433414,-500.0,0.00019178,2]
[349850846,1737461433423,-500.0,0.00019178,2]
[349850848,1737461433432,-500.0,0.00019178,2]
[349850850,1737461433441,-500.0,0.00019178,2]
[349850852,1737461433451,-500.0,0.00019178,2]
[349850854,1737461433460,-500.0,0.00019178,2]
[349850856,1737461433469,-500.0,0.00019178,2]
[349850858,1737461433479,-500.0,0.00019178,2]
[349850860,1737461433489,-500.0,0.00019178,2]
[349850862,1737461433499,-319.36072678,0.00019178,2]
[349850864,1737461433509,-500.0,0.00019178,2]
[349850866,1737461433518,-500.0,0.00019178,2]
[349850868,1737461433528,-500.0,0.00019178,2]
[349850870,1737461433537,-500.0,0.00019178,2]
[349850872,1737461433546,-500.0,0.00019178,2]
[349850874,1737461433556,-500.0,0.00019178,2]
[349850876,1737461433565,-1021.0,0.00019178,4]
[349850878,1737461433575,-151.35,0.00019198,2]
[349850880,1737461433584,-150.0,0.00019206,2]
[349850882,1737461433593,-2500.0,0.0001925,2]
[349850884,1737461433602,-300.0,0.00019329,2]
[349850886,1737461433612,-220.0,0.00019349,2]
[349850888,1737461433622,-294.0,0.00019349,2]
[349850890,1737461433631,-1041.40743834,0.0001935,2]
[349850892,1737461433641,-500.0,0.0001935,2]
[349850894,1737461433650,-500.0,0.0001935,2]
[349850896,1737461433661,-524.13,0.0001935,2]
[349850898,1737461433672,-500.0,0.0001935,2]
[349850900,1737461433681,-27501.2734,0.0001935,2]
[349850902,1737461433691,-5000.0,0.0001935,2]
[349850904,1737461433701,-692.62,0.00019351,2]
[349850906,1737461433710,-1336.51,0.00019351,2]
[349850908,1737461433720,-6741.85,0.00019351,2]
[349850910,1737461433728,-500.0,0.00019351,2]
[349850912,1737461433738,-500.0,0.00019351,2]
[349850914,1737461433747,-615.77,0.00019351,2]
[349850916,1737461433757,-1334.1,0.00019351,2]
[349850919,1737461433767,-1481.38,0.00019351,2]
[349850921,1737461433777,-500.0,0.00019351,2]
[349850923,1737461433788,-2097.97,0.00019351,2]
[349850925,1737461433799,-589.95,0.00019351,2]
[349850927,1737461433808,-500.0,0.00019351,2]
[349850929,1737461433818,-959.96,0.00019351,2]
[349850931,1737461433828,-595.73,0.00019351,2]
[349850933,1737461433838,-500.0,0.00019351,2]
[349850934,1737461433848,-1000.0,0.00019352,2]
[349850936,1737461433857,-6667.59248049,0.00019392,2]
[349850938,1737461433867,-3000.0,0.0001943,2]
[349850941,1737461433877,-500.0,0.00019448,2]
[349850942,1737461433886,-500.0,0.00019448,2]
[349850944,1737461433896,-385.638789,0.00019448,2]
[349850946,1737461433905,-500.0,0.00019448,2]
[349850948,1737461433914,-663.07,0.00019448,2]
[349850950,1737461433924,-159.534965,0.00019448,2]
[349850952,1737461433933,-158.892989,0.00019448,2]
[349850954,1737461433943,-500.0,0.00019448,2]
[349850956,1737461433953,-500.0,0.00019448,2]
[349850958,1737461433963,-500.0,0.00019448,2]
[349850960,1737461433972,-670.94,0.00019448,2]
[349850962,1737461433983,-221.865687,0.00019448,2]
[349850964,1737461433993,-646.9,0.00019448,2]
[349850966,1737461434004,-500.0,0.00019448,2]
[349850968,1737461434014,-659.65,0.00019448,2]
[349850970,1737461434024,-1477.39,0.00019448,2]
[349850972,1737461434035,-644.28,0.00019448,2]
[349850974,1737461434045,-732.84,0.00019448,2]
[349850976,1737461434055,-500.0,0.00019448,2]
[349850978,1737461434066,-1178.62,0.00019448,2]
[349850980,1737461434076,-500.0,0.00019448,2]
[349850982,1737461434086,-1229.18,0.00019448,2]
[349850985,1737461434097,-939.27,0.00019448,2]
[349850987,1737461434107,-1317.35,0.00019448,2]
[349850988,1737461434117,-1423.55,0.00019448,2]
[349850990,1737461434127,-500.0,0.00019448,2]
[349850992,1737461434137,-500.0,0.00019448,2]
[349850995,1737461434148,-1041.93,0.00019448,2]
[349850996,1737461434158,-890.96,0.00019448,2]
[349850998,1737461434168,-760.13,0.00019448,2]
[349851000,1737461434178,-500.0,0.00019448,2]
[349851002,1737461434188,-500.0,0.00019448,2]
[349851004,1737461434198,-739.73,0.00019448,2]
[349851006,1737461434208,-633.13,0.00019448,2]
[349851008,1737461434218,-1676.92,0.00019448,2]
[349851011,1737461434228,-1682.96,0.00019448,2]
[349851012,1737461434239,-1175.89,0.00019448,2]
[349851014,1737461434251,-612.0,0.00019448,2]
[349851017,1737461434261,-581.49,0.00019448,2]
[349851018,1737461434270,-500.0,0.00019448,2]
[349851020,1737461434280,-1621.97,0.00019448,2]
[349851022,1737461434291,-500.0,0.00019448,2]
[349851024,1737461434300,-500.0,0.00019448,2]
[349851026,1737461434310,-500.0,0.00019448,2]
[349851028,1737461434320,-740.55,0.00019448,2]
[349851030,1737461434330,-500.0,0.00019448,2]
[349851032,1737461434339,-500.0,0.00019448,2]
[349851034,1737461434348,-500.0,0.00019448,2]
[349851036,1737461434358,-976.72,0.00019448,2]
[349851038,1737461434367,-500.0,0.00019448,2]
[349851040,1737461434377,-500.0,0.00019448,2]
[349851042,1737461434387,-1455.68,0.00019448,2]
[349851044,1737461434397,-694.7,0.00019448,2]
[349851046,1737461434406,-500.0,0.00019448,2]
[349851048,1737461434416,-1392.82,0.00019448,2]
[349851050,1737461434425,-1381.5,0.00019448,2]
[349851052,1737461434436,-500.0,0.00019449,2]
[349851054,1737461434445,-508.60894906,0.00019449,2]
[349851056,1737461434454,-584.44038887,0.00019449,2]
[349851058,1737461434463,-500.0,0.00019449,2]
[349851060,1737461434472,-500.0,0.00019449,2]
[349851062,1737461434482,-500.0,0.00019449,2]
[349851064,1737461434491,-500.0,0.00019449,2]
[349851066,1737461434499,-500.0,0.00019449,2]
[349851068,1737461434508,-500.0,0.00019449,2]
[349851070,1737461434518,-620.26,0.00019449,2]
[349851072,1737461434527,-241.7257082,0.00019449,2]
[349851074,1737461434538,-500.0,0.00019449,2]
[349851076,1737461434546,-500.0,0.00019449,2]
[349851078,1737461434555,-500.0,0.00019449,2]
[349851080,1737461434565,-500.0,0.00019449,2]
[349851082,1737461434575,-500.0,0.00019449,2]
[349851084,1737461434584,-541.68469603,0.00019449,2]
[349851086,1737461434593,-500.0,0.00019449,2]
[349851088,1737461434602,-514.25260461,0.00019449,2]
[349851090,1737461434611,-500.0,0.00019449,2]
[349851092,1737461434620,-500.0,0.00019449,2]
[349851094,1737461434630,-500.0,0.00019449,2]
[349851095,1737461434639,-500.0,0.00019449,2]
[349851098,1737461434648,-621.93,0.00019449,2]
[349851100,1737461434657,-210.57559817,0.00019449,2]
[349851102,1737461434667,-500.0,0.00019449,2]
[349851104,1737461434676,-500.0,0.00019449,2]
[349851106,1737461434686,-500.0,0.00019449,2]
[349851108,1737461434695,-500.0,0.00019449,2]
[349851109,1737461434704,-515.17932818,0.00019449,2]
[349851112,1737461434713,-500.0,0.00019449,2]
[349851114,1737461434723,-500.0,0.00019449,2]
[349851116,1737461434733,-500.0,0.00019449,2]
[349851118,1737461434742,-500.0,0.00019449,2]
[349851120,1737461434751,-500.0,0.00019449,2]
[349851122,1737461434761,-500.0,0.00019449,2]
[349851124,1737461434771,-500.0,0.00019449,2]
[349851125,1737461434781,-545.83686969,0.00019449,2]
[349851128,1737461434790,-500.0,0.00019449,2]
[349851130,1737461434800,-500.0,0.00019449,2]
[349851132,1737461434809,-200.0,0.00019449,2]
[349851134,1737461434819,-500.0,0.00019449,2]
[349851136,1737461434828,-500.0,0.00019449,2]